{"text_format":"1","workbook":"xlsx","n_sheets":12,"sheets":["Instrukcija","Suvestine","1","2","3","4","5","6","7","8","9","10"],"not_rendered":{"charts":0,"images":1,"macros":1,"external_links":0,"defined_names":3,"comments":0,"pivot_tables":0},"unopened":[],"bounds":{"document_bytes":16777216,"sheet_cells":100000,"rows_first":2000,"rows_last":500,"rows_between":2000,"halvings":0,"cell_chars":16384,"cell_head_chars":4096},"cells_cut":0,"cells_raw":0,"read":"whole","date_system":"1900"}

{"sheet":"Instrukcija","index":0,"n_rows":10,"n_cols":4,"rows_kept":10,"cut":false,"hidden":false,"merged":[[0,3,0,5],[5,1,5,5],[8,1,8,5],[9,1,9,5],[2,0,2,5],[4,1,4,5],[6,1,6,5],[7,1,7,5]]}
[null,null,null,"Verslo plano priedas „Reikalingi ištekliai“\nNr. 1B"]
[]
["Pildymo instrukcija"]
[]
[1,"Šis verslo plano priedas Nr. 1B pildomas tik projekto veikloms, nurodytoms 2014–2020 metų Europos Sąjungos fondų investicijų veiksmų programos 1 prioriteto „Mokslinių tyrimų, eksperimentinės plėtros ir inovacijų skatinimas“  priemonės Nr. 01.2.1-LVPA-T-848  „Smart FDI“ projektų finansavimo sąlygų aprašo Nr. 2 (toliau – Aprašas) 10.2 punkte."]
[2,"Pildykite tik žalia spalva pažymėtus laukus."]
[3,"Nereikalingų eilučių, stulpelių netrinkite, esant poreikiui eilutes, stulpelius galite tik paslėpti (hide)."]
[4,"Kiekvienam pirmo lygio (kurio paraiškoje nurodytas numeris susideda iš trijų skaitmenų) fiziniam rodikliui, nurodytam paraiškos 6 dalyje „Projekto loginis pagrindimas“, pildykite atskirą lapą. Fizinio rodiklio pavadinimas ir numeris turi sutapti su paraiškoje nurodytais fizinių rodiklių pavadinimais ir numeriais. Jei projektas vykdomas kartu su partneriu(-iais), veikloms, kurios vykdomos kartu su partneriu(-iais) rekomenduojama atskirai numatyti pareiškėjui ir partneriui(-iams) tenkančius fizinius rodiklius.\nAtkreipiame dėmesį, kad vienam fiziniam rodikliui gali būti priskirta tik viena biudžeto išlaidų kategorija."]
[5,"Jei projektas vykdomas kartu su partneriu(-iais), rekomenduojama pareiškėjui ir partneriui(-iams) numatyti atskirus  pirmo lygio fizinius rodiklius."]
[6,"Kartu su verslo planu turi būti pateiktas ir šis verslo plano priedas (popierinė ir elektroninė versijos). LVPA teikiamoje elektroninėje versijoje turi likti visos skaičiavimams naudotos formulės."]

{"sheet":"Suvestine","index":1,"n_rows":41,"n_cols":6,"rows_kept":41,"cut":false,"hidden":false,"merged":[[40,0,40,3],[29,0,29,5],[38,0,38,1],[0,0,0,5],[27,0,27,5],[25,0,25,3]]}
["Veiklų, vykdomų pagal Aprašo 10.2 punktą, išlaidų suvestinė lentelė pagal fizinius rodiklius (lentelė užsipildo automatiškai)"]
[]
["Fizinio rodiklio Nr.","Fizinio rodiklio pavadinimas","Fizinio rodiklio matavimo vnt.","Fizinio rodiklio vnt. skaičius","Tinkamų finansuoti išlaidų suma, Eur","Finansavimo suma, Eur"]
[3,"Statyba, rekonstravimas, remontas ir kt. darbai",null,null,{"$f":"SUM(E5:E14)","v":0},{"$f":"SUM(F5:F14)","v":0}]
[{"$f":"'1'!$D$1","v":0},{"$f":"'1'!$D$2","v":0},{"$f":"'1'!$D$3","v":0},{"$f":"'1'!$H$3","v":0},{"$f":"'1'!$G$9","v":0},{"$f":"'1'!$I$9","v":0}]
[{"$f":"'2'!$D$1","v":0},{"$f":"'2'!$D$2","v":0},{"$f":"'2'!$D$3","v":0},{"$f":"'2'!$H$3","v":0},{"$f":"'2'!$G$9","v":0},{"$f":"'2'!$I$9","v":0}]
[{"$f":"'3'!$D$1","v":0},{"$f":"'3'!$D$2","v":0},{"$f":"'3'!$D$3","v":0},{"$f":"'3'!$H$3","v":0},{"$f":"'3'!$G$9","v":0},{"$f":"'3'!$I$9","v":0}]
[{"$f":"'4'!$D$1","v":0},{"$f":"'4'!$D$2","v":0},{"$f":"'4'!$D$3","v":0},{"$f":"'4'!$H$3","v":0},{"$f":"'4'!$G$9","v":0},{"$f":"'4'!$I$9","v":0}]
[{"$f":"'5'!$D$1","v":0},{"$f":"'5'!$D$2","v":0},{"$f":"'5'!$D$3","v":0},{"$f":"'5'!$H$3","v":0},{"$f":"'5'!$G$9","v":0},{"$f":"'5'!$I$9","v":0}]
[{"$f":"'6'!$D$1","v":0},{"$f":"'6'!$D$2","v":0},{"$f":"'6'!$D$3","v":0},{"$f":"'6'!$H$3","v":0},{"$f":"'6'!$G$9","v":0},{"$f":"'6'!$I$9","v":0}]
[{"$f":"'7'!$D$1","v":0},{"$f":"'7'!$D$2","v":0},{"$f":"'7'!$D$3","v":0},{"$f":"'7'!$H$3","v":0},{"$f":"'7'!$G$9","v":0},{"$f":"'7'!$I$9","v":0}]
[{"$f":"'8'!$D$1","v":0},{"$f":"'8'!$D$2","v":0},{"$f":"'8'!$D$3","v":0},{"$f":"'8'!$H$3","v":0},{"$f":"'8'!$G$9","v":0},{"$f":"'8'!$I$9","v":0}]
[{"$f":"'9'!$D$1","v":0},{"$f":"'9'!$D$2","v":0},{"$f":"'9'!$D$3","v":0},{"$f":"'9'!$H$3","v":0},{"$f":"'9'!$G$9","v":0},{"$f":"'9'!$I$9","v":0}]
[{"$f":"'10'!$D$1","v":0},{"$f":"'10'!$D$2","v":0},{"$f":"'10'!$D$3","v":0},{"$f":"'10'!$H$3","v":0},{"$f":"'10'!$G$9","v":0},{"$f":"'10'!$I$9","v":0}]
[4,"Įranga, įrenginiai ir kt. turtas",null,null,{"$f":"SUM(E16:E23)","v":0},{"$f":"SUM(F16:F23)","v":0}]
[{"$f":"'1'!$D$1","v":0},{"$f":"'1'!$D$2","v":0},{"$f":"'1'!$D$3","v":0},{"$f":"'1'!$H$3","v":0},{"$f":"'1'!$G$15","v":0},{"$f":"'1'!$I$15","v":0}]
[{"$f":"'2'!$D$1","v":0},{"$f":"'2'!$D$2","v":0},{"$f":"'2'!$D$3","v":0},{"$f":"'2'!$H$3","v":0},{"$f":"'2'!$G$15","v":0},{"$f":"'2'!$I$15","v":0}]
[{"$f":"'3'!$D$1","v":0},{"$f":"'3'!$D$2","v":0},{"$f":"'3'!$D$3","v":0},{"$f":"'3'!$H$3","v":0},{"$f":"'3'!$G$15","v":0},{"$f":"'3'!$I$15","v":0}]
[{"$f":"'4'!$D$1","v":0},{"$f":"'4'!$D$2","v":0},{"$f":"'4'!$D$3","v":0},{"$f":"'4'!$H$3","v":0},{"$f":"'4'!$G$15","v":0},{"$f":"'4'!$I$15","v":0}]
[{"$f":"'5'!$D$1","v":0},{"$f":"'5'!$D$2","v":0},{"$f":"'5'!$D$3","v":0},{"$f":"'5'!$H$3","v":0},{"$f":"'5'!$G$15","v":0},{"$f":"'5'!$I$15","v":0}]
[{"$f":"'6'!$D$1","v":0},{"$f":"'6'!$D$2","v":0},{"$f":"'6'!$D$3","v":0},{"$f":"'6'!$H$3","v":0},{"$f":"'6'!$G$15","v":0},{"$f":"'6'!$I$15","v":0}]
[{"$f":"'7'!$D$1","v":0},{"$f":"'7'!$D$2","v":0},{"$f":"'7'!$D$3","v":0},{"$f":"'7'!$H$3","v":0},{"$f":"'7'!$G$15","v":0},{"$f":"'7'!$I$15","v":0}]
[{"$f":"'8'!$D$1","v":0},{"$f":"'8'!$D$2","v":0},{"$f":"'8'!$D$3","v":0},{"$f":"'8'!$H$3","v":0},{"$f":"'8'!$G$15","v":0},{"$f":"'8'!$I$15","v":0}]
[{"$f":"'9'!$D$1","v":0},{"$f":"'9'!$D$2","v":0},{"$f":"'9'!$D$3","v":0},{"$f":"'9'!$H$3","v":0},{"$f":"'9'!$G$15","v":0},{"$f":"'9'!$I$15","v":0}]
[{"$f":"'10'!$D$1","v":0},{"$f":"'10'!$D$2","v":0},{"$f":"'10'!$D$3","v":0},{"$f":"'10'!$H$3","v":0},{"$f":"'10'!$G$15","v":0},{"$f":"'10'!$I$15","v":0}]
["Iš viso:",null,null,null,{"$f":"E15+E4","v":0},{"$f":"F15+F4","v":0}]
[]
[]
[]
["Veiklų, vykdomų pagal Aprašo 10.2 punktą, išlaidų suvestinė lentelė pagal išlaidų kategorijas (lentelė užsipildo automatiškai)"]
[]
["Eil. Nr.","Išlaidų kategorijos pavadinimas","Tinkamų finansuoti išlaidų suma be PVM, Eur","Finansavimo suma, Eur"]
[3,"STATYBA, REKONSTRAVIMAS, REMONTAS IR KITI DARBAI \n(MTEP ir inovacijų infrastruktūrai priskirtinų statinių statybos, rekonstravimo, kapitalinio remonto išlaidos.)",{"$f":"'1'!G9+'2'!G9+'3'!G9+'4'!G9+'5'!G9+'6'!G9+'7'!G9+'8'!G9+'9'!G9+'10'!G9","v":0},{"$f":"'1'!I9+'2'!I9+'3'!I9+'4'!I9+'5'!I9+'6'!I9+'7'!I9+'8'!I9+'9'!I9+'10'!I9","v":0}]
[4,"ĮRANGA, ĮRENGINIAI IR KITAS TURTAS",{"$f":"'1'!G15+'2'!G15+'3'!G15+'4'!G15+'5'!G15+'6'!G15+'7'!G15+'8'!G15+'9'!G15+'10'!G15","v":0},{"$f":"'1'!I15+'2'!I15+'3'!I15+'4'!I15+'5'!I15+'6'!I15+'7'!I15+'8'!I15+'9'!I15+'10'!I15","v":0}]
["4.1","Baldai (tiesiogiai MTEP veikloms vykdyti bei kuriamoms tyrėjų ir pagalbinio personalo darbo vietoms aprūpinti būtini baldai)",{"$f":"'1'!G16+'2'!G16+'3'!G16+'4'!G16+'5'!G16+'6'!G16+'7'!G16+'8'!G16+'9'!G16+'10'!G16","v":0},{"$f":"'1'!I16+'2'!I16+'3'!I16+'4'!I16+'5'!I16+'6'!I16+'7'!I16+'8'!I16+'9'!I16+'10'!I16","v":0}]
["4.2","Kompiuterinė technika (Išlaidos šiam turtui negali sudaryti daugiau nei 50 proc. Aprašo 10.2 punkte nurodytai veiklai skirtų tinkamų finansuoti išlaidų sumos)",{"$f":"'1'!G27+'2'!G27+'3'!G27+'4'!G27+'5'!G27+'6'!G27+'7'!G27+'8'!G27+'9'!G27+'10'!G27","v":0},{"$f":"'1'!I27+'2'!I27+'3'!I27+'4'!I27+'5'!I27+'6'!I27+'7'!I21+'8'!I27+'9'!I27+'10'!I27","v":0}]
["4.3","Patentai, licencijos, susijusios su MTEP ir inovacijų infrastruktūra ar jos panaudojimu",{"$f":"'1'!G33+'2'!G33+'3'!G33+'4'!G33+'5'!G33+'6'!G33+'7'!G33+'8'!G33+'9'!G33+'10'!G33","v":0},{"$f":"'1'!I33+'2'!I33+'3'!I33+'4'!I33+'5'!I33+'6'!I33+'7'!I33+'8'!I33+'9'!I33+'10'!I33","v":0}]
["4.4","Kiti įrengimai, įranga, prietaisai, įrankiai ir įrenginiai, priskirtini MTEP ir inovacijų infrastruktūrai",{"$f":"'1'!G39+'2'!G39+'3'!G39+'4'!G39+'5'!G39+'6'!G39+'7'!G39+'8'!G39+'9'!G39+'10'!G39","v":0},{"$f":"'1'!I39+'2'!I39+'3'!I39+'4'!I39+'5'!I39+'6'!I39+'7'!I39+'8'!I39+'9'!I39+'10'!I39","v":0}]
["Iš viso tinkamų finansuoti išlaidų veikloms, vykdomoms pagal Aprašo 10.2 punktą:",null,{"$f":"C33+C34","v":0},{"$f":"D33+D34","v":0}]
[]
[{"$f":"IF(C36>(C39/2),\"DĖMESIO! Patikrinkite, ar kompiuterinės technikos ir programinės įrangos išlaidos neviršija 50 proc. Aprašo 10.2 punkte nurodytai veiklai skirtų tinkamų finansuoti išlaidų\",\" \")","v":" "}]

{"sheet":"1","index":2,"n_rows":60,"n_cols":10,"rows_kept":60,"cut":false,"hidden":false,"merged":[[27,1,27,2],[28,1,28,2],[29,1,29,2],[45,1,45,2],[46,1,46,2],[43,1,43,2],[44,1,44,2],[36,1,36,2],[37,1,37,2],[38,1,38,2],[35,1,35,2],[30,1,30,2],[31,1,31,2],[32,1,32,2],[33,1,33,2],[34,1,34,2],[56,1,56,2],[57,1,57,2],[55,1,55,2],[47,1,47,2],[48,1,48,2],[49,1,49,2],[50,1,50,2],[51,1,51,2],[52,1,52,2],[53,1,53,2],[54,1,54,2],[59,0,59,5],[9,1,9,2],[10,1,10,2],[11,1,11,2],[12,1,12,2],[13,1,13,2],[15,1,15,2],[16,1,16,2],[17,1,17,2],[18,1,18,2],[58,1,58,2],[39,1,39,2],[40,1,40,2],[41,1,41,2],[42,1,42,2],[14,1,14,5],[1,0,1,2],[24,1,24,2],[1,3,1,9],[25,1,25,2],[26,1,26,2],[7,1,7,2],[8,1,8,5],[2,5,2,6],[2,3,2,4],[3,0,3,2],[3,3,3,8],[19,1,19,2],[20,1,20,2],[21,1,21,2],[22,1,22,2],[23,1,23,2]]}
[null,null,"Fizinio rodiklio Nr.:"]
["Fizinio rodiklio pavadinimas:"]
[null,null,"Fizinio rodiklio matavimo vnt.:",null,null,"Fizinio rodiklio vnt. skaičius:"]
["Juridinis asmuo (pareiškėjas, partneris), atsakingas už fizinį rodiklį:"]
[]
[null,null,"Finansavimo intensyvumas:",null,null,null,null,"Pasirinkite biudžeto išlaidų kategoriją:","4"]
[]
["Eil. Nr.","Išlaidų kategorijos pavadinimas",null,"Matavimo vnt.","Kiekis","Vieneto kaina be PVM, Eur","Tinkamų finansuoti išlaidų suma be PVM, Eur","Infrastruktūros naudojimo laiko dalis, skirta išimtinai MTEP, proc.","Finansavimo suma, Eur","Išlaidų pagrindimo dokumentų (ne mažiau kaip 3 komercinių pasiūlymų, sąmatų, techninių projektų ir pan.) pavadinimas, data ir Nr."]
[3,"STATYBA, REKONSTRAVIMAS, REMONTAS IR KITI DARBAI \n(MTEP ir inovacijų infrastruktūrai priskirtinų statinių statybos, rekonstravimo, kapitalinio remonto išlaidos)",null,null,null,null,{"$f":"SUM(G10:G14)","v":0},null,{"$f":"SUM(I10:I14)","v":0}]
["3.1","Išlaidų pavadinimas",null,null,null,null,{"$f":"ROUND(E10*F10,2)","v":0},null,{"$f":"ROUND(G10*$D$6*H10,2)","v":0}]
["3.2","Išlaidų pavadinimas",null,null,null,null,0,null,{"$f":"ROUND(G11*$D$6*H11,2)","v":0}]
["3.3","Išlaidų pavadinimas",null,null,null,null,0,null,0]
["3.4","Išlaidų pavadinimas",null,null,null,null,0,null,0]
["3.5","Išlaidų pavadinimas",null,null,null,null,0,null,0]
[4,"ĮRANGA, ĮRENGINIAI IR KITAS TURTAS",null,null,null,null,{"$f":"SUM(G16,G27,G33,G39)","v":0},null,{"$f":"SUM(I16,I27,I33,I39)","v":0}]
["4.1","Baldai (tiesiogiai MTEP veikloms vykdyti bei kuriamoms tyrėjų ir pagalbinio personalo darbo vietoms aprūpinti būtini baldai)",null,null,null,null,{"$f":"SUM(G17:G26)","v":0},null,{"$f":"SUM(I17:I26)","v":0}]
["4.1.1","Išlaidų pavadinimas",null,null,null,null,0,null,{"$f":"ROUND(G17*$D$6*H17,2)","v":0}]
["4.1.2","Išlaidų pavadinimas",null,null,null,null,{"$f":"ROUND(E18*F18,2)","v":0},null,{"$f":"ROUND(G18*$D$6*H18,2)","v":0}]
["4.1.3","Išlaidų pavadinimas",null,null,null,null,0,null,0]
["4.1.4","Išlaidų pavadinimas",null,null,null,null,0,null,0]
["4.1.5","Išlaidų pavadinimas",null,null,null,null,0,null,0]
["4.1.6","Išlaidų pavadinimas",null,null,null,null,0,null,0]
["4.1.7","Išlaidų pavadinimas",null,null,null,null,0,null,0]
["4.1.8","Išlaidų pavadinimas",null,null,null,null,0,null,0]
["4.1.9","Išlaidų pavadinimas",null,null,null,null,0,null,0]
["4.1.10","Išlaidų pavadinimas",null,null,null,null,0,null,0]
["4.2","Kompiuterinė technika",null,null,null,null,{"$f":"SUM(G28:G32)","v":0},null,{"$f":"SUM(I28:I32)","v":0}]
["4.2.1","Išlaidų pavadinimas",null,null,null,null,0,null,{"$f":"ROUND(G28*$D$6*H28,2)","v":0}]
["4.2.2","Išlaidų pavadinimas",null,null,null,null,0,null,{"$f":"ROUND(G29*$D$6*H29,2)","v":0}]
["4.2.3","Išlaidų pavadinimas",null,null,null,null,0,null,0]
["4.2.4","Išlaidų pavadinimas",null,null,null,null,0,null,0]
["4.2.5","Išlaidų pavadinimas",null,null,null,null,0,null,0]
["4.3","Patentai, licencijos, susijusios su MTEP ir inovacijų infrastruktūra ar jos panaudojimu",null,null,null,null,{"$f":"SUM(G34:G38)","v":0},null,{"$f":"SUM(I34:I38)","v":0}]
["4.3.1","Išlaidų pavadinimas",null,null,null,null,0,null,{"$f":"ROUND(G34*$D$6*H34,2)","v":0}]
["4.3.2","Išlaidų pavadinimas",null,null,null,null,0,null,{"$f":"ROUND(G35*$D$6*H35,2)","v":0}]
["4.3.3","Išlaidų pavadinimas",null,null,null,null,0,null,0]
["4.3.4","Išlaidų pavadinimas",null,null,null,null,0,null,0]
["4.3.5","Išlaidų pavadinimas",null,null,null,null,0,null,0]
["4.4","Kiti įrengimai, įranga, prietaisai, įrankiai ir įrenginiai, priskirtini MTEP ir inovacijų infrastruktūrai",null,null,null,null,{"$f":"SUM(G40:G59)","v":0},null,{"$f":"SUM(I40:I59)","v":0}]
["4.4.1","Išlaidų pavadinimas",null,null,null,null,0,null,{"$f":"ROUND(G40*$D$6*H40,2)","v":0}]
["4.4.2","Išlaidų pavadinimas",null,null,null,null,0,null,{"$f":"ROUND(G41*$D$6*H41,2)","v":0}]
["4.4.3","Išlaidų pavadinimas",null,null,null,null,0,null,0]
["4.4.4","Išlaidų pavadinimas",null,null,null,null,0,null,0]
["4.4.5","Išlaidų pavadinimas",null,null,null,null,0,null,0]
["4.4.6","Išlaidų pavadinimas",null,null,null,null,0,null,0]
["4.4.7","Išlaidų pavadinimas",null,null,null,null,0,null,0]
["4.4.8","Išlaidų pavadinimas",null,null,null,null,0,null,0]
["4.4.9","Išlaidų pavadinimas",null,null,null,null,0,null,0]
["4.4.10","Išlaidų pavadinimas",null,null,null,null,0,null,0]
["4.4.11","Išlaidų pavadinimas",null,null,null,null,0,null,0]
["4.4.12","Išlaidų pavadinimas",null,null,null,null,0,null,0]
["4.4.13","Išlaidų pavadinimas",null,null,null,null,0,null,0]
["4.4.14","Išlaidų pavadinimas",null,null,null,null,0,null,0]
["4.4.15","Išlaidų pavadinimas",null,null,null,null,0,null,0]
["4.4.16","Išlaidų pavadinimas",null,null,null,null,0,null,0]
["4.4.17","Išlaidų pavadinimas",null,null,null,null,0,null,0]
["4.4.18","Išlaidų pavadinimas",null,null,null,null,0,null,0]
["4.4.19","Išlaidų pavadinimas",null,null,null,null,0,null,0]
["4.4.20","Išlaidų pavadinimas",null,null,null,null,0,null,0]
["Iš viso tinkamų finansuoti išlaidų:",null,null,null,null,null,{"$f":"G9+G15","v":0},null,{"$f":"I9+I15","v":0}]

{"sheet":"2","index":3,"n_rows":60,"n_cols":10,"rows_kept":60,"cut":false,"hidden":false,"merged":[[2,3,2,4],[2,5,2,6],[12,1,12,2],[47,1,47,2],[48,1,48,2],[32,1,32,2],[33,1,33,2],[34,1,34,2],[35,1,35,2],[36,1,36,2],[37,1,37,2],[15,1,15,2],[3,3,3,8],[8,1,8,5],[13,1,13,2],[14,1,14,5],[1,0,1,2],[9,1,9,2],[3,0,3,2],[49,1,49,2],[41,1,41,2],[42,1,42,2],[43,1,43,2],[44,1,44,2],[45,1,45,2],[46,1,46,2],[25,1,25,2],[26,1,26,2],[27,1,27,2],[40,1,40,2],[29,1,29,2],[7,1,7,2],[1,3,1,9],[51,1,51,2],[10,1,10,2],[50,1,50,2],[28,1,28,2],[17,1,17,2],[18,1,18,2],[19,1,19,2],[20,1,20,2],[21,1,21,2],[22,1,22,2],[23,1,23,2],[24,1,24,2],[38,1,38,2],[39,1,39,2],[16,1,16,2],[11,1,11,2],[58,1,58,2],[30,1,30,2],[31,1,31,2],[52,1,52,2],[59,0,59,5],[53,1,53,2],[54,1,54,2],[55,1,55,2],[56,1,56,2],[57,1,57,2]]}
[null,null,"Fizinio rodiklio Nr.:"]
["Fizinio rodiklio pavadinimas:"]
[null,null,"Fizinio rodiklio matavimo vnt.:",null,null,"Fizinio rodiklio vnt. skaičius:"]
["Juridinis asmuo (pareiškėjas, partneris), atsakingas už fizinį rodiklį:"]
[]
[null,null,"Finansavimo intensyvumas:",null,null,null,null,"Pasirinkite biudžeto išlaidų kategoriją:"]
[]
["Eil. Nr.","Išlaidų kategorijos pavadinimas",null,"Matavimo vnt.","Kiekis","Vieneto kaina be PVM, Eur","Tinkamų finansuoti išlaidų suma be PVM, Eur","Infrastruktūros naudojimo laiko dalis, skirta išimtinai MTEP, proc.","Finansavimo suma, Eur","Išlaidų pagrindimo dokumentų (ne mažiau kaip 3 komercinių pasiūlymų, sąmatų, techninių projektų ir pan.) pavadinimas, data ir Nr."]
[3,"STATYBA, REKONSTRAVIMAS, REMONTAS IR KITI DARBAI \n(MTEP ir inovacijų infrastruktūrai priskirtinų statinių statybos, rekonstravimo, kapitalinio remonto išlaidos)",null,null,null,null,{"$f":"SUM(G10:G14)","v":0},null,{"$f":"SUM(I10:I14)","v":0}]
["3.1","Išlaidų pavadinimas",null,null,null,null,{"$f":"ROUND(E10*F10,2)","v":0},null,{"$f":"ROUND(G10*$D$6*H10,2)","v":0}]
["3.2","Išlaidų pavadinimas",null,null,null,null,0,null,{"$f":"ROUND(G11*$D$6*H11,2)","v":0}]
["3.3","Išlaidų pavadinimas",null,null,null,null,0,null,0]
["3.4","Išlaidų pavadinimas",null,null,null,null,0,null,0]
["3.5","Išlaidų pavadinimas",null,null,null,null,0,null,0]
[4,"ĮRANGA, ĮRENGINIAI IR KITAS TURTAS",null,null,null,null,{"$f":"SUM(G16,G27,G33,G39)","v":0},null,{"$f":"SUM(I16,I27,I33,I39)","v":0}]
["4.1","Baldai (tiesiogiai MTEP veikloms vykdyti bei kuriamoms tyrėjų ir pagalbinio personalo darbo vietoms aprūpinti būtini baldai)",null,null,null,null,{"$f":"SUM(G17:G26)","v":0},null,{"$f":"SUM(I17:I26)","v":0}]
["4.1.1","Išlaidų pavadinimas",null,null,null,null,0,null,{"$f":"ROUND(G17*$D$6*H17,2)","v":0}]
["4.1.2","Išlaidų pavadinimas",null,null,null,null,0,null,{"$f":"ROUND(G18*$D$6*H18,2)","v":0}]
["4.1.3","Išlaidų pavadinimas",null,null,null,null,0,null,0]
["4.1.4","Išlaidų pavadinimas",null,null,null,null,0,null,0]
["4.1.5","Išlaidų pavadinimas",null,null,null,null,0,null,0]
["4.1.6","Išlaidų pavadinimas",null,null,null,null,0,null,0]
["4.1.7","Išlaidų pavadinimas",null,null,null,null,0,null,0]
["4.1.8","Išlaidų pavadinimas",null,null,null,null,0,null,0]
["4.1.9","Išlaidų pavadinimas",null,null,null,null,0,null,0]
["4.1.10","Išlaidų pavadinimas",null,null,null,null,0,null,0]
["4.2","Kompiuterinė technika",null,null,null,null,{"$f":"SUM(G28:G32)","v":0},null,{"$f":"SUM(I28:I32)","v":0}]
["4.2.1","Išlaidų pavadinimas",null,null,null,null,0,null,{"$f":"ROUND(G28*$D$6*H28,2)","v":0}]
["4.2.2","Išlaidų pavadinimas",null,null,null,null,0,null,{"$f":"ROUND(G29*$D$6*H29,2)","v":0}]
["4.2.3","Išlaidų pavadinimas",null,null,null,null,0,null,0]
["4.2.4","Išlaidų pavadinimas",null,null,null,null,0,null,0]
["4.2.5","Išlaidų pavadinimas",null,null,null,null,0,null,0]
["4.3","Patentai, licencijos, susijusios su MTEP ir inovacijų infrastruktūra ar jos panaudojimu",null,null,null,null,{"$f":"SUM(G34:G38)","v":0},null,{"$f":"SUM(I34:I38)","v":0}]
["4.3.1","Išlaidų pavadinimas",null,null,null,null,0,null,{"$f":"ROUND(G34*$D$6*H34,2)","v":0}]
["4.3.2","Išlaidų pavadinimas",null,null,null,null,0,null,{"$f":"ROUND(G35*$D$6*H35,2)","v":0}]
["4.3.3","Išlaidų pavadinimas",null,null,null,null,0,null,0]
["4.3.4","Išlaidų pavadinimas",null,null,null,null,0,null,0]
["4.3.5","Išlaidų pavadinimas",null,null,null,null,0,null,0]
["4.4","Kiti įrengimai, įranga, prietaisai, įrankiai ir įrenginiai, priskirtini MTEP ir inovacijų infrastruktūrai",null,null,null,null,{"$f":"SUM(G40:G59)","v":0},null,{"$f":"SUM(I40:I59)","v":0}]
["4.4.1","Išlaidų pavadinimas",null,null,null,null,0,null,{"$f":"ROUND(G40*$D$6*H40,2)","v":0}]
["4.4.2","Išlaidų pavadinimas",null,null,null,null,0,null,{"$f":"ROUND(G41*$D$6*H41,2)","v":0}]
["4.4.3","Išlaidų pavadinimas",null,null,null,null,0,null,0]
["4.4.4","Išlaidų pavadinimas",null,null,null,null,0,null,0]
["4.4.5","Išlaidų pavadinimas",null,null,null,null,0,null,0]
["4.4.6","Išlaidų pavadinimas",null,null,null,null,0,null,0]
["4.4.7","Išlaidų pavadinimas",null,null,null,null,0,null,0]
["4.4.8","Išlaidų pavadinimas",null,null,null,null,0,null,0]
["4.4.9","Išlaidų pavadinimas",null,null,null,null,0,null,0]
["4.4.10","Išlaidų pavadinimas",null,null,null,null,0,null,0]
["4.4.11","Išlaidų pavadinimas",null,null,null,null,0,null,0]
["4.4.12","Išlaidų pavadinimas",null,null,null,null,0,null,0]
["4.4.13","Išlaidų pavadinimas",null,null,null,null,0,null,0]
["4.4.14","Išlaidų pavadinimas",null,null,null,null,0,null,0]
["4.4.15","Išlaidų pavadinimas",null,null,null,null,0,null,0]
["4.4.16","Išlaidų pavadinimas",null,null,null,null,0,null,0]
["4.4.17","Išlaidų pavadinimas",null,null,null,null,0,null,0]
["4.4.18","Išlaidų pavadinimas",null,null,null,null,0,null,0]
["4.4.19","Išlaidų pavadinimas",null,null,null,null,0,null,0]
["4.4.20","Išlaidų pavadinimas",null,null,null,null,0,null,0]
["Iš viso tinkamų finansuoti išlaidų:",null,null,null,null,null,{"$f":"G9+G15","v":0},null,{"$f":"I9+I15","v":0}]

{"sheet":"3","index":4,"n_rows":60,"n_cols":10,"rows_kept":60,"cut":false,"hidden":false,"merged":[[2,3,2,4],[2,5,2,6],[12,1,12,2],[47,1,47,2],[48,1,48,2],[32,1,32,2],[33,1,33,2],[34,1,34,2],[35,1,35,2],[36,1,36,2],[37,1,37,2],[15,1,15,2],[3,3,3,8],[8,1,8,5],[13,1,13,2],[14,1,14,5],[1,0,1,2],[9,1,9,2],[3,0,3,2],[49,1,49,2],[41,1,41,2],[42,1,42,2],[43,1,43,2],[44,1,44,2],[45,1,45,2],[46,1,46,2],[25,1,25,2],[26,1,26,2],[27,1,27,2],[40,1,40,2],[29,1,29,2],[7,1,7,2],[1,3,1,9],[51,1,51,2],[10,1,10,2],[50,1,50,2],[28,1,28,2],[17,1,17,2],[18,1,18,2],[19,1,19,2],[20,1,20,2],[21,1,21,2],[22,1,22,2],[23,1,23,2],[24,1,24,2],[38,1,38,2],[39,1,39,2],[16,1,16,2],[11,1,11,2],[58,1,58,2],[30,1,30,2],[31,1,31,2],[52,1,52,2],[59,0,59,5],[53,1,53,2],[54,1,54,2],[55,1,55,2],[56,1,56,2],[57,1,57,2]]}
[null,null,"Fizinio rodiklio Nr.:"]
["Fizinio rodiklio pavadinimas:"]
[null,null,"Fizinio rodiklio matavimo vnt.:",null,null,"Fizinio rodiklio vnt. skaičius:"]
["Juridinis asmuo (pareiškėjas, partneris), atsakingas už fizinį rodiklį:"]
[]
[null,null,"Finansavimo intensyvumas:",null,null,null,null,"Pasirinkite biudžeto išlaidų kategoriją:"]
[]
["Eil. Nr.","Išlaidų kategorijos pavadinimas",null,"Matavimo vnt.","Kiekis","Vieneto kaina be PVM, Eur","Tinkamų finansuoti išlaidų suma be PVM, Eur","Infrastruktūros naudojimo laiko dalis, skirta išimtinai MTEP, proc.","Finansavimo suma, Eur","Išlaidų pagrindimo dokumentų (ne mažiau kaip 3 komercinių pasiūlymų, sąmatų, techninių projektų ir pan.) pavadinimas, data ir Nr."]
[3,"STATYBA, REKONSTRAVIMAS, REMONTAS IR KITI DARBAI \n(MTEP ir inovacijų infrastruktūrai priskirtinų statinių statybos, rekonstravimo, kapitalinio remonto išlaidos)",null,null,null,null,{"$f":"SUM(G10:G14)","v":0},null,{"$f":"SUM(I10:I14)","v":0}]
["3.1","Išlaidų pavadinimas",null,null,null,null,{"$f":"ROUND(E10*F10,2)","v":0},null,{"$f":"ROUND(G10*$D$6*H10,2)","v":0}]
["3.2","Išlaidų pavadinimas",null,null,null,null,0,null,{"$f":"ROUND(G11*$D$6*H11,2)","v":0}]
["3.3","Išlaidų pavadinimas",null,null,null,null,0,null,0]
["3.4","Išlaidų pavadinimas",null,null,null,null,0,null,0]
["3.5","Išlaidų pavadinimas",null,null,null,null,0,null,0]
[4,"ĮRANGA, ĮRENGINIAI IR KITAS TURTAS",null,null,null,null,{"$f":"SUM(G16,G27,G33,G39)","v":0},null,{"$f":"SUM(I16,I27,I33,I39)","v":0}]
["4.1","Baldai (tiesiogiai MTEP veikloms vykdyti bei kuriamoms tyrėjų ir pagalbinio personalo darbo vietoms aprūpinti būtini baldai)",null,null,null,null,{"$f":"SUM(G17:G26)","v":0},null,{"$f":"SUM(I17:I26)","v":0}]
["4.1.1","Išlaidų pavadinimas",null,null,null,null,0,null,{"$f":"ROUND(G17*$D$6*H17,2)","v":0}]
["4.1.2","Išlaidų pavadinimas",null,null,null,null,0,null,{"$f":"ROUND(G18*$D$6*H18,2)","v":0}]
["4.1.3","Išlaidų pavadinimas",null,null,null,null,0,null,0]
["4.1.4","Išlaidų pavadinimas",null,null,null,null,0,null,0]
["4.1.5","Išlaidų pavadinimas",null,null,null,null,0,null,0]
["4.1.6","Išlaidų pavadinimas",null,null,null,null,0,null,0]
["4.1.7","Išlaidų pavadinimas",null,null,null,null,0,null,0]
["4.1.8","Išlaidų pavadinimas",null,null,null,null,0,null,0]
["4.1.9","Išlaidų pavadinimas",null,null,null,null,0,null,0]
["4.1.10","Išlaidų pavadinimas",null,null,null,null,0,null,0]
["4.2","Kompiuterinė technika",null,null,null,null,{"$f":"SUM(G28:G32)","v":0},null,{"$f":"SUM(I28:I32)","v":0}]
["4.2.1","Išlaidų pavadinimas",null,null,null,null,0,null,{"$f":"ROUND(G28*$D$6*H28,2)","v":0}]
["4.2.2","Išlaidų pavadinimas",null,null,null,null,0,null,{"$f":"ROUND(G29*$D$6*H29,2)","v":0}]
["4.2.3","Išlaidų pavadinimas",null,null,null,null,0,null,0]
["4.2.4","Išlaidų pavadinimas",null,null,null,null,0,null,0]
["4.2.5","Išlaidų pavadinimas",null,null,null,null,0,null,0]
["4.3","Patentai, licencijos, susijusios su MTEP ir inovacijų infrastruktūra ar jos panaudojimu",null,null,null,null,{"$f":"SUM(G34:G38)","v":0},null,{"$f":"SUM(I34:I38)","v":0}]
["4.3.1","Išlaidų pavadinimas",null,null,null,null,0,null,{"$f":"ROUND(G34*$D$6*H34,2)","v":0}]
["4.3.2","Išlaidų pavadinimas",null,null,null,null,0,null,{"$f":"ROUND(G35*$D$6*H35,2)","v":0}]
["4.3.3","Išlaidų pavadinimas",null,null,null,null,0,null,0]
["4.3.4","Išlaidų pavadinimas",null,null,null,null,0,null,0]
["4.3.5","Išlaidų pavadinimas",null,null,null,null,0,null,0]
["4.4","Kiti įrengimai, įranga, prietaisai, įrankiai ir įrenginiai, priskirtini MTEP ir inovacijų infrastruktūrai",null,null,null,null,{"$f":"SUM(G40:G59)","v":0},null,{"$f":"SUM(I40:I59)","v":0}]
["4.4.1","Išlaidų pavadinimas",null,null,null,null,0,null,{"$f":"ROUND(G40*$D$6*H40,2)","v":0}]
["4.4.2","Išlaidų pavadinimas",null,null,null,null,0,null,{"$f":"ROUND(G41*$D$6*H41,2)","v":0}]
["4.4.3","Išlaidų pavadinimas",null,null,null,null,0,null,0]
["4.4.4","Išlaidų pavadinimas",null,null,null,null,0,null,0]
["4.4.5","Išlaidų pavadinimas",null,null,null,null,0,null,0]
["4.4.6","Išlaidų pavadinimas",null,null,null,null,0,null,0]
["4.4.7","Išlaidų pavadinimas",null,null,null,null,0,null,0]
["4.4.8","Išlaidų pavadinimas",null,null,null,null,0,null,0]
["4.4.9","Išlaidų pavadinimas",null,null,null,null,0,null,0]
["4.4.10","Išlaidų pavadinimas",null,null,null,null,0,null,0]
["4.4.11","Išlaidų pavadinimas",null,null,null,null,0,null,0]
["4.4.12","Išlaidų pavadinimas",null,null,null,null,0,null,0]
["4.4.13","Išlaidų pavadinimas",null,null,null,null,0,null,0]
["4.4.14","Išlaidų pavadinimas",null,null,null,null,0,null,0]
["4.4.15","Išlaidų pavadinimas",null,null,null,null,0,null,0]
["4.4.16","Išlaidų pavadinimas",null,null,null,null,0,null,0]
["4.4.17","Išlaidų pavadinimas",null,null,null,null,0,null,0]
["4.4.18","Išlaidų pavadinimas",null,null,null,null,0,null,0]
["4.4.19","Išlaidų pavadinimas",null,null,null,null,0,null,0]
["4.4.20","Išlaidų pavadinimas",null,null,null,null,0,null,0]
["Iš viso tinkamų finansuoti išlaidų:",null,null,null,null,null,{"$f":"G9+G15","v":0},null,{"$f":"I9+I15","v":0}]

{"sheet":"4","index":5,"n_rows":60,"n_cols":10,"rows_kept":60,"cut":false,"hidden":false,"merged":[[2,3,2,4],[2,5,2,6],[12,1,12,2],[47,1,47,2],[48,1,48,2],[32,1,32,2],[33,1,33,2],[34,1,34,2],[35,1,35,2],[36,1,36,2],[37,1,37,2],[15,1,15,2],[3,3,3,8],[8,1,8,5],[13,1,13,2],[14,1,14,5],[1,0,1,2],[9,1,9,2],[3,0,3,2],[49,1,49,2],[41,1,41,2],[42,1,42,2],[43,1,43,2],[44,1,44,2],[45,1,45,2],[46,1,46,2],[25,1,25,2],[26,1,26,2],[27,1,27,2],[40,1,40,2],[29,1,29,2],[7,1,7,2],[1,3,1,9],[51,1,51,2],[10,1,10,2],[50,1,50,2],[28,1,28,2],[17,1,17,2],[18,1,18,2],[19,1,19,2],[20,1,20,2],[21,1,21,2],[22,1,22,2],[23,1,23,2],[24,1,24,2],[38,1,38,2],[39,1,39,2],[16,1,16,2],[11,1,11,2],[58,1,58,2],[30,1,30,2],[31,1,31,2],[52,1,52,2],[59,0,59,5],[53,1,53,2],[54,1,54,2],[55,1,55,2],[56,1,56,2],[57,1,57,2]]}
[null,null,"Fizinio rodiklio Nr.:"]
["Fizinio rodiklio pavadinimas:"]
[null,null,"Fizinio rodiklio matavimo vnt.:",null,null,"Fizinio rodiklio vnt. skaičius:"]
["Juridinis asmuo (pareiškėjas, partneris), atsakingas už fizinį rodiklį:"]
[]
[null,null,"Finansavimo intensyvumas:",null,null,null,null,"Pasirinkite biudžeto išlaidų kategoriją:"]
[]
["Eil. Nr.","Išlaidų kategorijos pavadinimas",null,"Matavimo vnt.","Kiekis","Vieneto kaina be PVM, Eur","Tinkamų finansuoti išlaidų suma be PVM, Eur","Infrastruktūros naudojimo laiko dalis, skirta išimtinai MTEP, proc.","Finansavimo suma, Eur","Išlaidų pagrindimo dokumentų (ne mažiau kaip 3 komercinių pasiūlymų, sąmatų, techninių projektų ir pan.) pavadinimas, data ir Nr."]
[3,"STATYBA, REKONSTRAVIMAS, REMONTAS IR KITI DARBAI \n(MTEP ir inovacijų infrastruktūrai priskirtinų statinių statybos, rekonstravimo, kapitalinio remonto išlaidos)",null,null,null,null,{"$f":"SUM(G10:G14)","v":0},null,{"$f":"SUM(I10:I14)","v":0}]
["3.1","Išlaidų pavadinimas",null,null,null,null,{"$f":"ROUND(E10*F10,2)","v":0},null,{"$f":"ROUND(G10*$D$6*H10,2)","v":0}]
["3.2","Išlaidų pavadinimas",null,null,null,null,0,null,{"$f":"ROUND(G11*$D$6*H11,2)","v":0}]
["3.3","Išlaidų pavadinimas",null,null,null,null,0,null,0]
["3.4","Išlaidų pavadinimas",null,null,null,null,0,null,0]
["3.5","Išlaidų pavadinimas",null,null,null,null,0,null,0]
[4,"ĮRANGA, ĮRENGINIAI IR KITAS TURTAS",null,null,null,null,{"$f":"SUM(G16,G27,G33,G39)","v":0},null,{"$f":"SUM(I16,I27,I33,I39)","v":0}]
["4.1","Baldai (tiesiogiai MTEP veikloms vykdyti bei kuriamoms tyrėjų ir pagalbinio personalo darbo vietoms aprūpinti būtini baldai)",null,null,null,null,{"$f":"SUM(G17:G26)","v":0},null,{"$f":"SUM(I17:I26)","v":0}]
["4.1.1","Išlaidų pavadinimas",null,null,null,null,0,null,{"$f":"ROUND(G17*$D$6*H17,2)","v":0}]
["4.1.2","Išlaidų pavadinimas",null,null,null,null,0,null,{"$f":"ROUND(G18*$D$6*H18,2)","v":0}]
["4.1.3","Išlaidų pavadinimas",null,null,null,null,0,null,0]
["4.1.4","Išlaidų pavadinimas",null,null,null,null,0,null,0]
["4.1.5","Išlaidų pavadinimas",null,null,null,null,0,null,0]
["4.1.6","Išlaidų pavadinimas",null,null,null,null,0,null,0]
["4.1.7","Išlaidų pavadinimas",null,null,null,null,0,null,0]
["4.1.8","Išlaidų pavadinimas",null,null,null,null,0,null,0]
["4.1.9","Išlaidų pavadinimas",null,null,null,null,0,null,0]
["4.1.10","Išlaidų pavadinimas",null,null,null,null,0,null,0]
["4.2","Kompiuterinė technika",null,null,null,null,{"$f":"SUM(G28:G32)","v":0},null,{"$f":"SUM(I28:I32)","v":0}]
["4.2.1","Išlaidų pavadinimas",null,null,null,null,0,null,{"$f":"ROUND(G28*$D$6*H28,2)","v":0}]
["4.2.2","Išlaidų pavadinimas",null,null,null,null,0,null,{"$f":"ROUND(G29*$D$6*H29,2)","v":0}]
["4.2.3","Išlaidų pavadinimas",null,null,null,null,0,null,0]
["4.2.4","Išlaidų pavadinimas",null,null,null,null,0,null,0]
["4.2.5","Išlaidų pavadinimas",null,null,null,null,0,null,0]
["4.3","Patentai, licencijos, susijusios su MTEP ir inovacijų infrastruktūra ar jos panaudojimu",null,null,null,null,{"$f":"SUM(G34:G38)","v":0},null,{"$f":"SUM(I34:I38)","v":0}]
["4.3.1","Išlaidų pavadinimas",null,null,null,null,0,null,{"$f":"ROUND(G34*$D$6*H34,2)","v":0}]
["4.3.2","Išlaidų pavadinimas",null,null,null,null,0,null,{"$f":"ROUND(G35*$D$6*H35,2)","v":0}]
["4.3.3","Išlaidų pavadinimas",null,null,null,null,0,null,0]
["4.3.4","Išlaidų pavadinimas",null,null,null,null,0,null,0]
["4.3.5","Išlaidų pavadinimas",null,null,null,null,0,null,0]
["4.4","Kiti įrengimai, įranga, prietaisai, įrankiai ir įrenginiai, priskirtini MTEP ir inovacijų infrastruktūrai",null,null,null,null,{"$f":"SUM(G40:G59)","v":0},null,{"$f":"SUM(I40:I59)","v":0}]
["4.4.1","Išlaidų pavadinimas",null,null,null,null,0,null,{"$f":"ROUND(G40*$D$6*H40,2)","v":0}]
["4.4.2","Išlaidų pavadinimas",null,null,null,null,0,null,{"$f":"ROUND(G41*$D$6*H41,2)","v":0}]
["4.4.3","Išlaidų pavadinimas",null,null,null,null,0,null,0]
["4.4.4","Išlaidų pavadinimas",null,null,null,null,0,null,0]
["4.4.5","Išlaidų pavadinimas",null,null,null,null,0,null,0]
["4.4.6","Išlaidų pavadinimas",null,null,null,null,0,null,0]
["4.4.7","Išlaidų pavadinimas",null,null,null,null,0,null,0]
["4.4.8","Išlaidų pavadinimas",null,null,null,null,0,null,0]
["4.4.9","Išlaidų pavadinimas",null,null,null,null,0,null,0]
["4.4.10","Išlaidų pavadinimas",null,null,null,null,0,null,0]
["4.4.11","Išlaidų pavadinimas",null,null,null,null,0,null,0]
["4.4.12","Išlaidų pavadinimas",null,null,null,null,0,null,0]
["4.4.13","Išlaidų pavadinimas",null,null,null,null,0,null,0]
["4.4.14","Išlaidų pavadinimas",null,null,null,null,0,null,0]
["4.4.15","Išlaidų pavadinimas",null,null,null,null,0,null,0]
["4.4.16","Išlaidų pavadinimas",null,null,null,null,0,null,0]
["4.4.17","Išlaidų pavadinimas",null,null,null,null,0,null,0]
["4.4.18","Išlaidų pavadinimas",null,null,null,null,0,null,0]
["4.4.19","Išlaidų pavadinimas",null,null,null,null,0,null,0]
["4.4.20","Išlaidų pavadinimas",null,null,null,null,0,null,0]
["Iš viso tinkamų finansuoti išlaidų:",null,null,null,null,null,{"$f":"G9+G15","v":0},null,{"$f":"I9+I15","v":0}]

{"sheet":"5","index":6,"n_rows":60,"n_cols":10,"rows_kept":60,"cut":false,"hidden":false,"merged":[[2,3,2,4],[2,5,2,6],[12,1,12,2],[47,1,47,2],[48,1,48,2],[32,1,32,2],[33,1,33,2],[34,1,34,2],[35,1,35,2],[36,1,36,2],[37,1,37,2],[15,1,15,2],[3,3,3,8],[8,1,8,5],[13,1,13,2],[14,1,14,5],[1,0,1,2],[9,1,9,2],[3,0,3,2],[49,1,49,2],[41,1,41,2],[42,1,42,2],[43,1,43,2],[44,1,44,2],[45,1,45,2],[46,1,46,2],[25,1,25,2],[26,1,26,2],[27,1,27,2],[40,1,40,2],[29,1,29,2],[7,1,7,2],[1,3,1,9],[51,1,51,2],[10,1,10,2],[50,1,50,2],[28,1,28,2],[17,1,17,2],[18,1,18,2],[19,1,19,2],[20,1,20,2],[21,1,21,2],[22,1,22,2],[23,1,23,2],[24,1,24,2],[38,1,38,2],[39,1,39,2],[16,1,16,2],[11,1,11,2],[58,1,58,2],[30,1,30,2],[31,1,31,2],[52,1,52,2],[59,0,59,5],[53,1,53,2],[54,1,54,2],[55,1,55,2],[56,1,56,2],[57,1,57,2]]}
[null,null,"Fizinio rodiklio Nr.:"]
["Fizinio rodiklio pavadinimas:"]
[null,null,"Fizinio rodiklio matavimo vnt.:",null,null,"Fizinio rodiklio vnt. skaičius:"]
["Juridinis asmuo (pareiškėjas, partneris), atsakingas už fizinį rodiklį:"]
[]
[null,null,"Finansavimo intensyvumas:",null,null,null,null,"Pasirinkite biudžeto išlaidų kategoriją:"]
[]
["Eil. Nr.","Išlaidų kategorijos pavadinimas",null,"Matavimo vnt.","Kiekis","Vieneto kaina be PVM, Eur","Tinkamų finansuoti išlaidų suma be PVM, Eur","Infrastruktūros naudojimo laiko dalis, skirta išimtinai MTEP, proc.","Finansavimo suma, Eur","Išlaidų pagrindimo dokumentų (ne mažiau kaip 3 komercinių pasiūlymų, sąmatų, techninių projektų ir pan.) pavadinimas, data ir Nr."]
[3,"STATYBA, REKONSTRAVIMAS, REMONTAS IR KITI DARBAI \n(MTEP ir inovacijų infrastruktūrai priskirtinų statinių statybos, rekonstravimo, kapitalinio remonto išlaidos)",null,null,null,null,{"$f":"SUM(G10:G14)","v":0},null,{"$f":"SUM(I10:I14)","v":0}]
["3.1","Išlaidų pavadinimas",null,null,null,null,{"$f":"ROUND(E10*F10,2)","v":0},null,{"$f":"ROUND(G10*$D$6*H10,2)","v":0}]
["3.2","Išlaidų pavadinimas",null,null,null,null,0,null,{"$f":"ROUND(G11*$D$6*H11,2)","v":0}]
["3.3","Išlaidų pavadinimas",null,null,null,null,0,null,0]
["3.4","Išlaidų pavadinimas",null,null,null,null,0,null,0]
["3.5","Išlaidų pavadinimas",null,null,null,null,0,null,0]
[4,"ĮRANGA, ĮRENGINIAI IR KITAS TURTAS",null,null,null,null,{"$f":"SUM(G16,G27,G33,G39)","v":0},null,{"$f":"SUM(I16,I27,I33,I39)","v":0}]
["4.1","Baldai (tiesiogiai MTEP veikloms vykdyti bei kuriamoms tyrėjų ir pagalbinio personalo darbo vietoms aprūpinti būtini baldai)",null,null,null,null,{"$f":"SUM(G17:G26)","v":0},null,{"$f":"SUM(I17:I26)","v":0}]
["4.1.1","Išlaidų pavadinimas",null,null,null,null,0,null,{"$f":"ROUND(G17*$D$6*H17,2)","v":0}]
["4.1.2","Išlaidų pavadinimas",null,null,null,null,0,null,{"$f":"ROUND(G18*$D$6*H18,2)","v":0}]
["4.1.3","Išlaidų pavadinimas",null,null,null,null,0,null,0]
["4.1.4","Išlaidų pavadinimas",null,null,null,null,0,null,0]
["4.1.5","Išlaidų pavadinimas",null,null,null,null,0,null,0]
["4.1.6","Išlaidų pavadinimas",null,null,null,null,0,null,0]
["4.1.7","Išlaidų pavadinimas",null,null,null,null,0,null,0]
["4.1.8","Išlaidų pavadinimas",null,null,null,null,0,null,0]
["4.1.9","Išlaidų pavadinimas",null,null,null,null,0,null,0]
["4.1.10","Išlaidų pavadinimas",null,null,null,null,0,null,0]
["4.2","Kompiuterinė technika",null,null,null,null,{"$f":"SUM(G28:G32)","v":0},null,{"$f":"SUM(I28:I32)","v":0}]
["4.2.1","Išlaidų pavadinimas",null,null,null,null,0,null,{"$f":"ROUND(G28*$D$6*H28,2)","v":0}]
["4.2.2","Išlaidų pavadinimas",null,null,null,null,0,null,{"$f":"ROUND(G29*$D$6*H29,2)","v":0}]
["4.2.3","Išlaidų pavadinimas",null,null,null,null,0,null,0]
["4.2.4","Išlaidų pavadinimas",null,null,null,null,0,null,0]
["4.2.5","Išlaidų pavadinimas",null,null,null,null,0,null,0]
["4.3","Patentai, licencijos, susijusios su MTEP ir inovacijų infrastruktūra ar jos panaudojimu",null,null,null,null,{"$f":"SUM(G34:G38)","v":0},null,{"$f":"SUM(I34:I38)","v":0}]
["4.3.1","Išlaidų pavadinimas",null,null,null,null,0,null,{"$f":"ROUND(G34*$D$6*H34,2)","v":0}]
["4.3.2","Išlaidų pavadinimas",null,null,null,null,0,null,{"$f":"ROUND(G35*$D$6*H35,2)","v":0}]
["4.3.3","Išlaidų pavadinimas",null,null,null,null,0,null,0]
["4.3.4","Išlaidų pavadinimas",null,null,null,null,0,null,0]
["4.3.5","Išlaidų pavadinimas",null,null,null,null,0,null,0]
["4.4","Kiti įrengimai, įranga, prietaisai, įrankiai ir įrenginiai, priskirtini MTEP ir inovacijų infrastruktūrai",null,null,null,null,{"$f":"SUM(G40:G59)","v":0},null,{"$f":"SUM(I40:I59)","v":0}]
["4.4.1","Išlaidų pavadinimas",null,null,null,null,0,null,{"$f":"ROUND(G40*$D$6*H40,2)","v":0}]
["4.4.2","Išlaidų pavadinimas",null,null,null,null,0,null,{"$f":"ROUND(G41*$D$6*H41,2)","v":0}]
["4.4.3","Išlaidų pavadinimas",null,null,null,null,0,null,0]
["4.4.4","Išlaidų pavadinimas",null,null,null,null,0,null,0]
["4.4.5","Išlaidų pavadinimas",null,null,null,null,0,null,0]
["4.4.6","Išlaidų pavadinimas",null,null,null,null,0,null,0]
["4.4.7","Išlaidų pavadinimas",null,null,null,null,0,null,0]
["4.4.8","Išlaidų pavadinimas",null,null,null,null,0,null,0]
["4.4.9","Išlaidų pavadinimas",null,null,null,null,0,null,0]
["4.4.10","Išlaidų pavadinimas",null,null,null,null,0,null,0]
["4.4.11","Išlaidų pavadinimas",null,null,null,null,0,null,0]
["4.4.12","Išlaidų pavadinimas",null,null,null,null,0,null,0]
["4.4.13","Išlaidų pavadinimas",null,null,null,null,0,null,0]
["4.4.14","Išlaidų pavadinimas",null,null,null,null,0,null,0]
["4.4.15","Išlaidų pavadinimas",null,null,null,null,0,null,0]
["4.4.16","Išlaidų pavadinimas",null,null,null,null,0,null,0]
["4.4.17","Išlaidų pavadinimas",null,null,null,null,0,null,0]
["4.4.18","Išlaidų pavadinimas",null,null,null,null,0,null,0]
["4.4.19","Išlaidų pavadinimas",null,null,null,null,0,null,0]
["4.4.20","Išlaidų pavadinimas",null,null,null,null,0,null,0]
["Iš viso tinkamų finansuoti išlaidų:",null,null,null,null,null,{"$f":"G9+G15","v":0},null,{"$f":"I9+I15","v":0}]

{"sheet":"6","index":7,"n_rows":60,"n_cols":10,"rows_kept":60,"cut":false,"hidden":false,"merged":[[51,1,51,2],[52,1,52,2],[2,3,2,4],[45,1,45,2],[46,1,46,2],[47,1,47,2],[48,1,48,2],[49,1,49,2],[50,1,50,2],[39,1,39,2],[40,1,40,2],[41,1,41,2],[42,1,42,2],[43,1,43,2],[44,1,44,2],[38,1,38,2],[37,1,37,2],[21,1,21,2],[22,1,22,2],[23,1,23,2],[24,1,24,2],[25,1,25,2],[32,1,32,2],[33,1,33,2],[34,1,34,2],[35,1,35,2],[36,1,36,2],[27,1,27,2],[28,1,28,2],[29,1,29,2],[30,1,30,2],[31,1,31,2],[11,1,11,2],[12,1,12,2],[3,0,3,2],[3,3,3,8],[7,1,7,2],[8,1,8,5],[1,0,1,2],[1,3,1,9],[2,5,2,6],[9,1,9,2],[10,1,10,2],[56,1,56,2],[57,1,57,2],[58,1,58,2],[59,0,59,5],[13,1,13,2],[14,1,14,5],[53,1,53,2],[54,1,54,2],[55,1,55,2],[26,1,26,2],[15,1,15,2],[16,1,16,2],[17,1,17,2],[18,1,18,2],[19,1,19,2],[20,1,20,2]]}
[null,null,"Fizinio rodiklio Nr.:"]
["Fizinio rodiklio pavadinimas:"]
[null,null,"Fizinio rodiklio matavimo vnt.:",null,null,"Fizinio rodiklio vnt. skaičius:"]
["Juridinis asmuo (pareiškėjas, partneris), atsakingas už fizinį rodiklį:"]
[]
[null,null,"Finansavimo intensyvumas:",null,null,null,null,"Pasirinkite biudžeto išlaidų kategoriją:"]
[]
["Eil. Nr.","Išlaidų kategorijos pavadinimas",null,"Matavimo vnt.","Kiekis","Vieneto kaina be PVM, Eur","Tinkamų finansuoti išlaidų suma be PVM, Eur","Infrastruktūros naudojimo laiko dalis, skirta išimtinai MTEP, proc.","Finansavimo suma, Eur","Išlaidų pagrindimo dokumentų (ne mažiau kaip 3 komercinių pasiūlymų, sąmatų, techninių projektų ir pan.) pavadinimas, data ir Nr."]
[3,"STATYBA, REKONSTRAVIMAS, REMONTAS IR KITI DARBAI \n(MTEP ir inovacijų infrastruktūrai priskirtinų statinių statybos, rekonstravimo, kapitalinio remonto išlaidos)",null,null,null,null,{"$f":"SUM(G10:G14)","v":0},null,{"$f":"SUM(I10:I14)","v":0}]
["3.1","Išlaidų pavadinimas",null,null,null,null,{"$f":"ROUND(E10*F10,2)","v":0},null,{"$f":"ROUND(G10*$D$6*H10,2)","v":0}]
["3.2","Išlaidų pavadinimas",null,null,null,null,0,null,{"$f":"ROUND(G11*$D$6*H11,2)","v":0}]
["3.3","Išlaidų pavadinimas",null,null,null,null,0,null,0]
["3.4","Išlaidų pavadinimas",null,null,null,null,0,null,0]
["3.5","Išlaidų pavadinimas",null,null,null,null,0,null,0]
[4,"ĮRANGA, ĮRENGINIAI IR KITAS TURTAS",null,null,null,null,{"$f":"SUM(G16,G27,G33,G39)","v":0},null,{"$f":"SUM(I16,I27,I33,I39)","v":0}]
["4.1","Baldai (tiesiogiai MTEP veikloms vykdyti bei kuriamoms tyrėjų ir pagalbinio personalo darbo vietoms aprūpinti būtini baldai)",null,null,null,null,{"$f":"SUM(G17:G26)","v":0},null,{"$f":"SUM(I17:I26)","v":0}]
["4.1.1","Išlaidų pavadinimas",null,null,null,null,0,null,{"$f":"ROUND(G17*$D$6*H17,2)","v":0}]
["4.1.2","Išlaidų pavadinimas",null,null,null,null,0,null,{"$f":"ROUND(G18*$D$6*H18,2)","v":0}]
["4.1.3","Išlaidų pavadinimas",null,null,null,null,0,null,0]
["4.1.4","Išlaidų pavadinimas",null,null,null,null,0,null,0]
["4.1.5","Išlaidų pavadinimas",null,null,null,null,0,null,0]
["4.1.6","Išlaidų pavadinimas",null,null,null,null,0,null,0]
["4.1.7","Išlaidų pavadinimas",null,null,null,null,0,null,0]
["4.1.8","Išlaidų pavadinimas",null,null,null,null,0,null,0]
["4.1.9","Išlaidų pavadinimas",null,null,null,null,0,null,0]
["4.1.10","Išlaidų pavadinimas",null,null,null,null,0,null,0]
["4.2","Kompiuterinė technika",null,null,null,null,{"$f":"SUM(G28:G32)","v":0},null,{"$f":"SUM(I28:I32)","v":0}]
["4.2.1","Išlaidų pavadinimas",null,null,null,null,0,null,{"$f":"ROUND(G28*$D$6*H28,2)","v":0}]
["4.2.2","Išlaidų pavadinimas",null,null,null,null,0,null,{"$f":"ROUND(G29*$D$6*H29,2)","v":0}]
["4.2.3","Išlaidų pavadinimas",null,null,null,null,0,null,0]
["4.2.4","Išlaidų pavadinimas",null,null,null,null,0,null,0]
["4.2.5","Išlaidų pavadinimas",null,null,null,null,0,null,0]
["4.3","Patentai, licencijos, susijusios su MTEP ir inovacijų infrastruktūra ar jos panaudojimu",null,null,null,null,{"$f":"SUM(G34:G38)","v":0},null,{"$f":"SUM(I34:I38)","v":0}]
["4.3.1","Išlaidų pavadinimas",null,null,null,null,0,null,{"$f":"ROUND(G34*$D$6*H34,2)","v":0}]
["4.3.2","Išlaidų pavadinimas",null,null,null,null,0,null,{"$f":"ROUND(G35*$D$6*H35,2)","v":0}]
["4.3.3","Išlaidų pavadinimas",null,null,null,null,0,null,0]
["4.3.4","Išlaidų pavadinimas",null,null,null,null,0,null,0]
["4.3.5","Išlaidų pavadinimas",null,null,null,null,0,null,0]
["4.4","Kiti įrengimai, įranga, prietaisai, įrankiai ir įrenginiai, priskirtini MTEP ir inovacijų infrastruktūrai",null,null,null,null,{"$f":"SUM(G40:G59)","v":0},null,{"$f":"SUM(I40:I59)","v":0}]
["4.4.1","Išlaidų pavadinimas",null,null,null,null,0,null,{"$f":"ROUND(G40*$D$6*H40,2)","v":0}]
["4.4.2","Išlaidų pavadinimas",null,null,null,null,0,null,{"$f":"ROUND(G41*$D$6*H41,2)","v":0}]
["4.4.3","Išlaidų pavadinimas",null,null,null,null,0,null,0]
["4.4.4","Išlaidų pavadinimas",null,null,null,null,0,null,0]
["4.4.5","Išlaidų pavadinimas",null,null,null,null,0,null,0]
["4.4.6","Išlaidų pavadinimas",null,null,null,null,0,null,0]
["4.4.7","Išlaidų pavadinimas",null,null,null,null,0,null,0]
["4.4.8","Išlaidų pavadinimas",null,null,null,null,0,null,0]
["4.4.9","Išlaidų pavadinimas",null,null,null,null,0,null,0]
["4.4.10","Išlaidų pavadinimas",null,null,null,null,0,null,0]
["4.4.11","Išlaidų pavadinimas",null,null,null,null,0,null,0]
["4.4.12","Išlaidų pavadinimas",null,null,null,null,0,null,0]
["4.4.13","Išlaidų pavadinimas",null,null,null,null,0,null,0]
["4.4.14","Išlaidų pavadinimas",null,null,null,null,0,null,0]
["4.4.15","Išlaidų pavadinimas",null,null,null,null,0,null,0]
["4.4.16","Išlaidų pavadinimas",null,null,null,null,0,null,0]
["4.4.17","Išlaidų pavadinimas",null,null,null,null,0,null,0]
["4.4.18","Išlaidų pavadinimas",null,null,null,null,0,null,0]
["4.4.19","Išlaidų pavadinimas",null,null,null,null,0,null,0]
["4.4.20","Išlaidų pavadinimas",null,null,null,null,0,null,0]
["Iš viso tinkamų finansuoti išlaidų:",null,null,null,null,null,{"$f":"G9+G15","v":0},null,{"$f":"I9+I15","v":0}]

{"sheet":"7","index":8,"n_rows":60,"n_cols":10,"rows_kept":60,"cut":false,"hidden":false,"merged":[[51,1,51,2],[52,1,52,2],[2,3,2,4],[45,1,45,2],[46,1,46,2],[47,1,47,2],[48,1,48,2],[49,1,49,2],[50,1,50,2],[39,1,39,2],[40,1,40,2],[41,1,41,2],[42,1,42,2],[43,1,43,2],[44,1,44,2],[38,1,38,2],[37,1,37,2],[21,1,21,2],[22,1,22,2],[23,1,23,2],[24,1,24,2],[25,1,25,2],[32,1,32,2],[33,1,33,2],[34,1,34,2],[35,1,35,2],[36,1,36,2],[27,1,27,2],[28,1,28,2],[29,1,29,2],[30,1,30,2],[31,1,31,2],[11,1,11,2],[12,1,12,2],[3,0,3,2],[3,3,3,8],[7,1,7,2],[8,1,8,5],[1,0,1,2],[1,3,1,9],[2,5,2,6],[9,1,9,2],[10,1,10,2],[56,1,56,2],[57,1,57,2],[58,1,58,2],[59,0,59,5],[13,1,13,2],[14,1,14,5],[53,1,53,2],[54,1,54,2],[55,1,55,2],[26,1,26,2],[15,1,15,2],[16,1,16,2],[17,1,17,2],[18,1,18,2],[19,1,19,2],[20,1,20,2]]}
[null,null,"Fizinio rodiklio Nr.:"]
["Fizinio rodiklio pavadinimas:"]
[null,null,"Fizinio rodiklio matavimo vnt.:",null,null,"Fizinio rodiklio vnt. skaičius:"]
["Juridinis asmuo (pareiškėjas, partneris), atsakingas už fizinį rodiklį:"]
[]
[null,null,"Finansavimo intensyvumas:",null,null,null,null,"Pasirinkite biudžeto išlaidų kategoriją:"]
[]
["Eil. Nr.","Išlaidų kategorijos pavadinimas",null,"Matavimo vnt.","Kiekis","Vieneto kaina be PVM, Eur","Tinkamų finansuoti išlaidų suma be PVM, Eur","Infrastruktūros naudojimo laiko dalis, skirta išimtinai MTEP, proc.","Finansavimo suma, Eur","Išlaidų pagrindimo dokumentų (ne mažiau kaip 3 komercinių pasiūlymų, sąmatų, techninių projektų ir pan.) pavadinimas, data ir Nr."]
[3,"STATYBA, REKONSTRAVIMAS, REMONTAS IR KITI DARBAI \n(MTEP ir inovacijų infrastruktūrai priskirtinų statinių statybos, rekonstravimo, kapitalinio remonto išlaidos)",null,null,null,null,{"$f":"SUM(G10:G14)","v":0},null,{"$f":"SUM(I10:I14)","v":0}]
["3.1","Išlaidų pavadinimas",null,null,null,null,{"$f":"ROUND(E10*F10,2)","v":0},null,{"$f":"ROUND(G10*$D$6*H10,2)","v":0}]
["3.2","Išlaidų pavadinimas",null,null,null,null,0,null,{"$f":"ROUND(G11*$D$6*H11,2)","v":0}]
["3.3","Išlaidų pavadinimas",null,null,null,null,0,null,0]
["3.4","Išlaidų pavadinimas",null,null,null,null,0,null,0]
["3.5","Išlaidų pavadinimas",null,null,null,null,0,null,0]
[4,"ĮRANGA, ĮRENGINIAI IR KITAS TURTAS",null,null,null,null,{"$f":"SUM(G16,G27,G33,G39)","v":0},null,{"$f":"SUM(I16,I27,I33,I39)","v":0}]
["4.1","Baldai (tiesiogiai MTEP veikloms vykdyti bei kuriamoms tyrėjų ir pagalbinio personalo darbo vietoms aprūpinti būtini baldai)",null,null,null,null,{"$f":"SUM(G17:G26)","v":0},null,{"$f":"SUM(I17:I26)","v":0}]
["4.1.1","Išlaidų pavadinimas",null,null,null,null,0,null,{"$f":"ROUND(G17*$D$6*H17,2)","v":0}]
["4.1.2","Išlaidų pavadinimas",null,null,null,null,0,null,{"$f":"ROUND(G18*$D$6*H18,2)","v":0}]
["4.1.3","Išlaidų pavadinimas",null,null,null,null,0,null,0]
["4.1.4","Išlaidų pavadinimas",null,null,null,null,0,null,0]
["4.1.5","Išlaidų pavadinimas",null,null,null,null,0,null,0]
["4.1.6","Išlaidų pavadinimas",null,null,null,null,0,null,0]
["4.1.7","Išlaidų pavadinimas",null,null,null,null,0,null,0]
["4.1.8","Išlaidų pavadinimas",null,null,null,null,0,null,0]
["4.1.9","Išlaidų pavadinimas",null,null,null,null,0,null,0]
["4.1.10","Išlaidų pavadinimas",null,null,null,null,0,null,0]
["4.2","Kompiuterinė technika",null,null,null,null,{"$f":"SUM(G28:G32)","v":0},null,{"$f":"SUM(I28:I32)","v":0}]
["4.2.1","Išlaidų pavadinimas",null,null,null,null,0,null,{"$f":"ROUND(G28*$D$6*H28,2)","v":0}]
["4.2.2","Išlaidų pavadinimas",null,null,null,null,0,null,{"$f":"ROUND(G29*$D$6*H29,2)","v":0}]
["4.2.3","Išlaidų pavadinimas",null,null,null,null,0,null,0]
["4.2.4","Išlaidų pavadinimas",null,null,null,null,0,null,0]
["4.2.5","Išlaidų pavadinimas",null,null,null,null,0,null,0]
["4.3","Patentai, licencijos, susijusios su MTEP ir inovacijų infrastruktūra ar jos panaudojimu",null,null,null,null,{"$f":"SUM(G34:G38)","v":0},null,{"$f":"SUM(I34:I38)","v":0}]
["4.3.1","Išlaidų pavadinimas",null,null,null,null,0,null,{"$f":"ROUND(G34*$D$6*H34,2)","v":0}]
["4.3.2","Išlaidų pavadinimas",null,null,null,null,0,null,{"$f":"ROUND(G35*$D$6*H35,2)","v":0}]
["4.3.3","Išlaidų pavadinimas",null,null,null,null,0,null,0]
["4.3.4","Išlaidų pavadinimas",null,null,null,null,0,null,0]
["4.3.5","Išlaidų pavadinimas",null,null,null,null,0,null,0]
["4.4","Kiti įrengimai, įranga, prietaisai, įrankiai ir įrenginiai, priskirtini MTEP ir inovacijų infrastruktūrai",null,null,null,null,{"$f":"SUM(G40:G59)","v":0},null,{"$f":"SUM(I40:I59)","v":0}]
["4.4.1","Išlaidų pavadinimas",null,null,null,null,0,null,{"$f":"ROUND(G40*$D$6*H40,2)","v":0}]
["4.4.2","Išlaidų pavadinimas",null,null,null,null,0,null,{"$f":"ROUND(G41*$D$6*H41,2)","v":0}]
["4.4.3","Išlaidų pavadinimas",null,null,null,null,0,null,0]
["4.4.4","Išlaidų pavadinimas",null,null,null,null,0,null,0]
["4.4.5","Išlaidų pavadinimas",null,null,null,null,0,null,0]
["4.4.6","Išlaidų pavadinimas",null,null,null,null,0,null,0]
["4.4.7","Išlaidų pavadinimas",null,null,null,null,0,null,0]
["4.4.8","Išlaidų pavadinimas",null,null,null,null,0,null,0]
["4.4.9","Išlaidų pavadinimas",null,null,null,null,0,null,0]
["4.4.10","Išlaidų pavadinimas",null,null,null,null,0,null,0]
["4.4.11","Išlaidų pavadinimas",null,null,null,null,0,null,0]
["4.4.12","Išlaidų pavadinimas",null,null,null,null,0,null,0]
["4.4.13","Išlaidų pavadinimas",null,null,null,null,0,null,0]
["4.4.14","Išlaidų pavadinimas",null,null,null,null,0,null,0]
["4.4.15","Išlaidų pavadinimas",null,null,null,null,0,null,0]
["4.4.16","Išlaidų pavadinimas",null,null,null,null,0,null,0]
["4.4.17","Išlaidų pavadinimas",null,null,null,null,0,null,0]
["4.4.18","Išlaidų pavadinimas",null,null,null,null,0,null,0]
["4.4.19","Išlaidų pavadinimas",null,null,null,null,0,null,0]
["4.4.20","Išlaidų pavadinimas",null,null,null,null,0,null,0]
["Iš viso tinkamų finansuoti išlaidų:",null,null,null,null,null,{"$f":"G9+G15","v":0},null,{"$f":"I9+I15","v":0}]

{"sheet":"8","index":9,"n_rows":60,"n_cols":10,"rows_kept":60,"cut":false,"hidden":false,"merged":[[53,1,53,2],[50,1,50,2],[51,1,51,2],[52,1,52,2],[44,1,44,2],[45,1,45,2],[46,1,46,2],[47,1,47,2],[48,1,48,2],[49,1,49,2],[43,1,43,2],[32,1,32,2],[33,1,33,2],[34,1,34,2],[35,1,35,2],[36,1,36,2],[37,1,37,2],[38,1,38,2],[39,1,39,2],[40,1,40,2],[41,1,41,2],[42,1,42,2],[31,1,31,2],[20,1,20,2],[21,1,21,2],[22,1,22,2],[23,1,23,2],[24,1,24,2],[25,1,25,2],[26,1,26,2],[27,1,27,2],[28,1,28,2],[29,1,29,2],[30,1,30,2],[7,1,7,2],[19,1,19,2],[9,1,9,2],[10,1,10,2],[11,1,11,2],[12,1,12,2],[15,1,15,2],[16,1,16,2],[17,1,17,2],[18,1,18,2],[8,1,8,5],[13,1,13,2],[14,1,14,5],[1,0,1,2],[1,3,1,9],[2,3,2,4],[2,5,2,6],[3,0,3,2],[3,3,3,8],[59,0,59,5],[54,1,54,2],[55,1,55,2],[56,1,56,2],[57,1,57,2],[58,1,58,2]]}
[null,null,"Fizinio rodiklio Nr.:"]
["Fizinio rodiklio pavadinimas:"]
[null,null,"Fizinio rodiklio matavimo vnt.:",null,null,"Fizinio rodiklio vnt. skaičius:"]
["Juridinis asmuo (pareiškėjas, partneris), atsakingas už fizinį rodiklį:"]
[]
[null,null,"Finansavimo intensyvumas:",null,null,null,null,"Pasirinkite biudžeto išlaidų kategoriją:"]
[]
["Eil. Nr.","Išlaidų kategorijos pavadinimas",null,"Matavimo vnt.","Kiekis","Vieneto kaina be PVM, Eur","Tinkamų finansuoti išlaidų suma be PVM, Eur","Infrastruktūros naudojimo laiko dalis, skirta išimtinai MTEP, proc.","Finansavimo suma, Eur","Išlaidų pagrindimo dokumentų (ne mažiau kaip 3 komercinių pasiūlymų, sąmatų, techninių projektų ir pan.) pavadinimas, data ir Nr."]
[3,"STATYBA, REKONSTRAVIMAS, REMONTAS IR KITI DARBAI \n(MTEP ir inovacijų infrastruktūrai priskirtinų statinių statybos, rekonstravimo, kapitalinio remonto išlaidos)",null,null,null,null,{"$f":"SUM(G10:G14)","v":0},null,{"$f":"SUM(I10:I14)","v":0}]
["3.1","Išlaidų pavadinimas",null,null,null,null,{"$f":"ROUND(E10*F10,2)","v":0},null,{"$f":"ROUND(G10*$D$6*H10,2)","v":0}]
["3.2","Išlaidų pavadinimas",null,null,null,null,0,null,{"$f":"ROUND(G11*$D$6*H11,2)","v":0}]
["3.3","Išlaidų pavadinimas",null,null,null,null,0,null,0]
["3.4","Išlaidų pavadinimas",null,null,null,null,0,null,0]
["3.5","Išlaidų pavadinimas",null,null,null,null,0,null,0]
[4,"ĮRANGA, ĮRENGINIAI IR KITAS TURTAS",null,null,null,null,{"$f":"SUM(G16,G27,G33,G39)","v":0},null,{"$f":"SUM(I16,I27,I33,I39)","v":0}]
["4.1","Baldai (tiesiogiai MTEP veikloms vykdyti bei kuriamoms tyrėjų ir pagalbinio personalo darbo vietoms aprūpinti būtini baldai)",null,null,null,null,{"$f":"SUM(G17:G26)","v":0},null,{"$f":"SUM(I17:I26)","v":0}]
["4.1.1","Išlaidų pavadinimas",null,null,null,null,0,null,{"$f":"ROUND(G17*$D$6*H17,2)","v":0}]
["4.1.2","Išlaidų pavadinimas",null,null,null,null,0,null,{"$f":"ROUND(G18*$D$6*H18,2)","v":0}]
["4.1.3","Išlaidų pavadinimas",null,null,null,null,0,null,0]
["4.1.4","Išlaidų pavadinimas",null,null,null,null,0,null,0]
["4.1.5","Išlaidų pavadinimas",null,null,null,null,0,null,0]
["4.1.6","Išlaidų pavadinimas",null,null,null,null,0,null,0]
["4.1.7","Išlaidų pavadinimas",null,null,null,null,0,null,0]
["4.1.8","Išlaidų pavadinimas",null,null,null,null,0,null,0]
["4.1.9","Išlaidų pavadinimas",null,null,null,null,0,null,0]
["4.1.10","Išlaidų pavadinimas",null,null,null,null,0,null,0]
["4.2","Kompiuterinė technika",null,null,null,null,{"$f":"SUM(G28:G32)","v":0},null,{"$f":"SUM(I28:I32)","v":0}]
["4.2.1","Išlaidų pavadinimas",null,null,null,null,0,null,{"$f":"ROUND(G28*$D$6*H28,2)","v":0}]
["4.2.2","Išlaidų pavadinimas",null,null,null,null,0,null,{"$f":"ROUND(G29*$D$6*H29,2)","v":0}]
["4.2.3","Išlaidų pavadinimas",null,null,null,null,0,null,0]
["4.2.4","Išlaidų pavadinimas",null,null,null,null,0,null,0]
["4.2.5","Išlaidų pavadinimas",null,null,null,null,0,null,0]
["4.3","Patentai, licencijos, susijusios su MTEP ir inovacijų infrastruktūra ar jos panaudojimu",null,null,null,null,{"$f":"SUM(G34:G38)","v":0},null,{"$f":"SUM(I34:I38)","v":0}]
["4.3.1","Išlaidų pavadinimas",null,null,null,null,0,null,{"$f":"ROUND(G34*$D$6*H34,2)","v":0}]
["4.3.2","Išlaidų pavadinimas",null,null,null,null,0,null,{"$f":"ROUND(G35*$D$6*H35,2)","v":0}]
["4.3.3","Išlaidų pavadinimas",null,null,null,null,0,null,0]
["4.3.4","Išlaidų pavadinimas",null,null,null,null,0,null,0]
["4.3.5","Išlaidų pavadinimas",null,null,null,null,0,null,0]
["4.4","Kiti įrengimai, įranga, prietaisai, įrankiai ir įrenginiai, priskirtini MTEP ir inovacijų infrastruktūrai",null,null,null,null,{"$f":"SUM(G40:G59)","v":0},null,{"$f":"SUM(I40:I59)","v":0}]
["4.4.1","Išlaidų pavadinimas",null,null,null,null,0,null,{"$f":"ROUND(G40*$D$6*H40,2)","v":0}]
["4.4.2","Išlaidų pavadinimas",null,null,null,null,0,null,{"$f":"ROUND(G41*$D$6*H41,2)","v":0}]
["4.4.3","Išlaidų pavadinimas",null,null,null,null,0,null,0]
["4.4.4","Išlaidų pavadinimas",null,null,null,null,0,null,0]
["4.4.5","Išlaidų pavadinimas",null,null,null,null,0,null,0]
["4.4.6","Išlaidų pavadinimas",null,null,null,null,0,null,0]
["4.4.7","Išlaidų pavadinimas",null,null,null,null,0,null,0]
["4.4.8","Išlaidų pavadinimas",null,null,null,null,0,null,0]
["4.4.9","Išlaidų pavadinimas",null,null,null,null,0,null,0]
["4.4.10","Išlaidų pavadinimas",null,null,null,null,0,null,0]
["4.4.11","Išlaidų pavadinimas",null,null,null,null,0,null,0]
["4.4.12","Išlaidų pavadinimas",null,null,null,null,0,null,0]
["4.4.13","Išlaidų pavadinimas",null,null,null,null,0,null,0]
["4.4.14","Išlaidų pavadinimas",null,null,null,null,0,null,0]
["4.4.15","Išlaidų pavadinimas",null,null,null,null,0,null,0]
["4.4.16","Išlaidų pavadinimas",null,null,null,null,0,null,0]
["4.4.17","Išlaidų pavadinimas",null,null,null,null,0,null,0]
["4.4.18","Išlaidų pavadinimas",null,null,null,null,0,null,0]
["4.4.19","Išlaidų pavadinimas",null,null,null,null,0,null,0]
["4.4.20","Išlaidų pavadinimas",null,null,null,null,0,null,0]
["Iš viso tinkamų finansuoti išlaidų:",null,null,null,null,null,{"$f":"G9+G15","v":0},null,{"$f":"I9+I15","v":0}]

{"sheet":"9","index":10,"n_rows":60,"n_cols":10,"rows_kept":60,"cut":false,"hidden":false,"merged":[[1,0,1,2],[1,3,1,9],[2,3,2,4],[2,5,2,6],[3,0,3,2],[3,3,3,8],[18,1,18,2],[7,1,7,2],[8,1,8,5],[9,1,9,2],[10,1,10,2],[11,1,11,2],[12,1,12,2],[13,1,13,2],[14,1,14,5],[15,1,15,2],[16,1,16,2],[17,1,17,2],[30,1,30,2],[19,1,19,2],[20,1,20,2],[21,1,21,2],[22,1,22,2],[23,1,23,2],[24,1,24,2],[25,1,25,2],[26,1,26,2],[27,1,27,2],[28,1,28,2],[29,1,29,2],[42,1,42,2],[31,1,31,2],[32,1,32,2],[33,1,33,2],[34,1,34,2],[35,1,35,2],[36,1,36,2],[37,1,37,2],[38,1,38,2],[39,1,39,2],[40,1,40,2],[41,1,41,2],[54,1,54,2],[43,1,43,2],[44,1,44,2],[45,1,45,2],[46,1,46,2],[47,1,47,2],[48,1,48,2],[49,1,49,2],[50,1,50,2],[51,1,51,2],[52,1,52,2],[53,1,53,2],[55,1,55,2],[56,1,56,2],[57,1,57,2],[58,1,58,2],[59,0,59,5]]}
[null,null,"Fizinio rodiklio Nr.:"]
["Fizinio rodiklio pavadinimas:"]
[null,null,"Fizinio rodiklio matavimo vnt.:",null,null,"Fizinio rodiklio vnt. skaičius:"]
["Juridinis asmuo (pareiškėjas, partneris), atsakingas už fizinį rodiklį:"]
[]
[null,null,"Finansavimo intensyvumas:",null,null,null,null,"Pasirinkite biudžeto išlaidų kategoriją:"]
[]
["Eil. Nr.","Išlaidų kategorijos pavadinimas",null,"Matavimo vnt.","Kiekis","Vieneto kaina be PVM, Eur","Tinkamų finansuoti išlaidų suma be PVM, Eur","Infrastruktūros naudojimo laiko dalis, skirta išimtinai MTEP, proc.","Finansavimo suma, Eur","Išlaidų pagrindimo dokumentų (ne mažiau kaip 3 komercinių pasiūlymų, sąmatų, techninių projektų ir pan.) pavadinimas, data ir Nr."]
[3,"STATYBA, REKONSTRAVIMAS, REMONTAS IR KITI DARBAI \n(MTEP ir inovacijų infrastruktūrai priskirtinų statinių statybos, rekonstravimo, kapitalinio remonto išlaidos)",null,null,null,null,{"$f":"SUM(G10:G14)","v":0},null,{"$f":"SUM(I10:I14)","v":0}]
["3.1","Išlaidų pavadinimas",null,null,null,null,{"$f":"ROUND(E10*F10,2)","v":0},null,{"$f":"ROUND(G10*$D$6*H10,2)","v":0}]
["3.2","Išlaidų pavadinimas",null,null,null,null,0,null,{"$f":"ROUND(G11*$D$6*H11,2)","v":0}]
["3.3","Išlaidų pavadinimas",null,null,null,null,0,null,0]
["3.4","Išlaidų pavadinimas",null,null,null,null,0,null,0]
["3.5","Išlaidų pavadinimas",null,null,null,null,0,null,0]
[4,"ĮRANGA, ĮRENGINIAI IR KITAS TURTAS",null,null,null,null,{"$f":"SUM(G16,G27,G33,G39)","v":0},null,{"$f":"SUM(I16,I27,I33,I39)","v":0}]
["4.1","Baldai (tiesiogiai MTEP veikloms vykdyti bei kuriamoms tyrėjų ir pagalbinio personalo darbo vietoms aprūpinti būtini baldai)",null,null,null,null,{"$f":"SUM(G17:G26)","v":0},null,{"$f":"SUM(I17:I26)","v":0}]
["4.1.1","Išlaidų pavadinimas",null,null,null,null,0,null,{"$f":"ROUND(G17*$D$6*H17,2)","v":0}]
["4.1.2","Išlaidų pavadinimas",null,null,null,null,0,null,{"$f":"ROUND(G18*$D$6*H18,2)","v":0}]
["4.1.3","Išlaidų pavadinimas",null,null,null,null,0,null,0]
["4.1.4","Išlaidų pavadinimas",null,null,null,null,0,null,0]
["4.1.5","Išlaidų pavadinimas",null,null,null,null,0,null,0]
["4.1.6","Išlaidų pavadinimas",null,null,null,null,0,null,0]
["4.1.7","Išlaidų pavadinimas",null,null,null,null,0,null,0]
["4.1.8","Išlaidų pavadinimas",null,null,null,null,0,null,0]
["4.1.9","Išlaidų pavadinimas",null,null,null,null,0,null,0]
["4.1.10","Išlaidų pavadinimas",null,null,null,null,0,null,0]
["4.2","Kompiuterinė technika",null,null,null,null,{"$f":"SUM(G28:G32)","v":0},null,{"$f":"SUM(I28:I32)","v":0}]
["4.2.1","Išlaidų pavadinimas",null,null,null,null,0,null,{"$f":"ROUND(G28*$D$6*H28,2)","v":0}]
["4.2.2","Išlaidų pavadinimas",null,null,null,null,0,null,{"$f":"ROUND(G29*$D$6*H29,2)","v":0}]
["4.2.3","Išlaidų pavadinimas",null,null,null,null,0,null,0]
["4.2.4","Išlaidų pavadinimas",null,null,null,null,0,null,0]
["4.2.5","Išlaidų pavadinimas",null,null,null,null,0,null,0]
["4.3","Patentai, licencijos, susijusios su MTEP ir inovacijų infrastruktūra ar jos panaudojimu",null,null,null,null,{"$f":"SUM(G34:G38)","v":0},null,{"$f":"SUM(I34:I38)","v":0}]
["4.3.1","Išlaidų pavadinimas",null,null,null,null,0,null,{"$f":"ROUND(G34*$D$6*H34,2)","v":0}]
["4.3.2","Išlaidų pavadinimas",null,null,null,null,0,null,{"$f":"ROUND(G35*$D$6*H35,2)","v":0}]
["4.3.3","Išlaidų pavadinimas",null,null,null,null,0,null,0]
["4.3.4","Išlaidų pavadinimas",null,null,null,null,0,null,0]
["4.3.5","Išlaidų pavadinimas",null,null,null,null,0,null,0]
["4.4","Kiti įrengimai, įranga, prietaisai, įrankiai ir įrenginiai, priskirtini MTEP ir inovacijų infrastruktūrai",null,null,null,null,{"$f":"SUM(G40:G59)","v":0},null,{"$f":"SUM(I40:I59)","v":0}]
["4.4.1","Išlaidų pavadinimas",null,null,null,null,0,null,{"$f":"ROUND(G40*$D$6*H40,2)","v":0}]
["4.4.2","Išlaidų pavadinimas",null,null,null,null,0,null,{"$f":"ROUND(G41*$D$6*H41,2)","v":0}]
["4.4.3","Išlaidų pavadinimas",null,null,null,null,0,null,0]
["4.4.4","Išlaidų pavadinimas",null,null,null,null,0,null,0]
["4.4.5","Išlaidų pavadinimas",null,null,null,null,0,null,0]
["4.4.6","Išlaidų pavadinimas",null,null,null,null,0,null,0]
["4.4.7","Išlaidų pavadinimas",null,null,null,null,0,null,0]
["4.4.8","Išlaidų pavadinimas",null,null,null,null,0,null,0]
["4.4.9","Išlaidų pavadinimas",null,null,null,null,0,null,0]
["4.4.10","Išlaidų pavadinimas",null,null,null,null,0,null,0]
["4.4.11","Išlaidų pavadinimas",null,null,null,null,0,null,0]
["4.4.12","Išlaidų pavadinimas",null,null,null,null,0,null,0]
["4.4.13","Išlaidų pavadinimas",null,null,null,null,0,null,0]
["4.4.14","Išlaidų pavadinimas",null,null,null,null,0,null,0]
["4.4.15","Išlaidų pavadinimas",null,null,null,null,0,null,0]
["4.4.16","Išlaidų pavadinimas",null,null,null,null,0,null,0]
["4.4.17","Išlaidų pavadinimas",null,null,null,null,0,null,0]
["4.4.18","Išlaidų pavadinimas",null,null,null,null,0,null,0]
["4.4.19","Išlaidų pavadinimas",null,null,null,null,0,null,0]
["4.4.20","Išlaidų pavadinimas",null,null,null,null,0,null,0]
["Iš viso tinkamų finansuoti išlaidų:",null,null,null,null,null,{"$f":"G9+G15","v":0},null,{"$f":"I9+I15","v":0}]

{"sheet":"10","index":11,"n_rows":60,"n_cols":10,"rows_kept":60,"cut":false,"hidden":false,"merged":[[1,0,1,2],[1,3,1,9],[2,3,2,4],[2,5,2,6],[3,0,3,2],[3,3,3,8],[18,1,18,2],[7,1,7,2],[8,1,8,5],[9,1,9,2],[10,1,10,2],[11,1,11,2],[12,1,12,2],[13,1,13,2],[14,1,14,5],[15,1,15,2],[16,1,16,2],[17,1,17,2],[30,1,30,2],[19,1,19,2],[20,1,20,2],[21,1,21,2],[22,1,22,2],[23,1,23,2],[24,1,24,2],[25,1,25,2],[26,1,26,2],[27,1,27,2],[28,1,28,2],[29,1,29,2],[42,1,42,2],[31,1,31,2],[32,1,32,2],[33,1,33,2],[34,1,34,2],[35,1,35,2],[36,1,36,2],[37,1,37,2],[38,1,38,2],[39,1,39,2],[40,1,40,2],[41,1,41,2],[54,1,54,2],[43,1,43,2],[44,1,44,2],[45,1,45,2],[46,1,46,2],[47,1,47,2],[48,1,48,2],[49,1,49,2],[50,1,50,2],[51,1,51,2],[52,1,52,2],[53,1,53,2],[55,1,55,2],[56,1,56,2],[57,1,57,2],[58,1,58,2],[59,0,59,5]]}
[null,null,"Fizinio rodiklio Nr.:"]
["Fizinio rodiklio pavadinimas:"]
[null,null,"Fizinio rodiklio matavimo vnt.:",null,null,"Fizinio rodiklio vnt. skaičius:"]
["Juridinis asmuo (pareiškėjas, partneris), atsakingas už fizinį rodiklį:"]
[]
[null,null,"Finansavimo intensyvumas:",null,null,null,null,"Pasirinkite biudžeto išlaidų kategoriją:"]
[]
["Eil. Nr.","Išlaidų kategorijos pavadinimas",null,"Matavimo vnt.","Kiekis","Vieneto kaina be PVM, Eur","Tinkamų finansuoti išlaidų suma be PVM, Eur","Infrastruktūros naudojimo laiko dalis, skirta išimtinai MTEP, proc.","Finansavimo suma, Eur","Išlaidų pagrindimo dokumentų (ne mažiau kaip 3 komercinių pasiūlymų, sąmatų, techninių projektų ir pan.) pavadinimas, data ir Nr."]
[3,"STATYBA, REKONSTRAVIMAS, REMONTAS IR KITI DARBAI \n(MTEP ir inovacijų infrastruktūrai priskirtinų statinių statybos, rekonstravimo, kapitalinio remonto išlaidos)",null,null,null,null,{"$f":"SUM(G10:G14)","v":0},null,{"$f":"SUM(I10:I14)","v":0}]
["3.1","Išlaidų pavadinimas",null,null,null,null,{"$f":"ROUND(E10*F10,2)","v":0},null,{"$f":"ROUND(G10*$D$6*H10,2)","v":0}]
["3.2","Išlaidų pavadinimas",null,null,null,null,0,null,{"$f":"ROUND(G11*$D$6*H11,2)","v":0}]
["3.3","Išlaidų pavadinimas",null,null,null,null,0,null,0]
["3.4","Išlaidų pavadinimas",null,null,null,null,0,null,0]
["3.5","Išlaidų pavadinimas",null,null,null,null,0,null,0]
[4,"ĮRANGA, ĮRENGINIAI IR KITAS TURTAS",null,null,null,null,{"$f":"SUM(G16,G27,G33,G39)","v":0},null,{"$f":"SUM(I16,I27,I33,I39)","v":0}]
["4.1","Baldai (tiesiogiai MTEP veikloms vykdyti bei kuriamoms tyrėjų ir pagalbinio personalo darbo vietoms aprūpinti būtini baldai)",null,null,null,null,{"$f":"SUM(G17:G26)","v":0},null,{"$f":"SUM(I17:I26)","v":0}]
["4.1.1","Išlaidų pavadinimas",null,null,null,null,0,null,{"$f":"ROUND(G17*$D$6*H17,2)","v":0}]
["4.1.2","Išlaidų pavadinimas",null,null,null,null,0,null,{"$f":"ROUND(G18*$D$6*H18,2)","v":0}]
["4.1.3","Išlaidų pavadinimas",null,null,null,null,0,null,0]
["4.1.4","Išlaidų pavadinimas",null,null,null,null,0,null,0]
["4.1.5","Išlaidų pavadinimas",null,null,null,null,0,null,0]
["4.1.6","Išlaidų pavadinimas",null,null,null,null,0,null,0]
["4.1.7","Išlaidų pavadinimas",null,null,null,null,0,null,0]
["4.1.8","Išlaidų pavadinimas",null,null,null,null,0,null,0]
["4.1.9","Išlaidų pavadinimas",null,null,null,null,0,null,0]
["4.1.10","Išlaidų pavadinimas",null,null,null,null,0,null,0]
["4.2","Kompiuterinė technika",null,null,null,null,{"$f":"SUM(G28:G32)","v":0},null,{"$f":"SUM(I28:I32)","v":0}]
["4.2.1","Išlaidų pavadinimas",null,null,null,null,0,null,{"$f":"ROUND(G28*$D$6*H28,2)","v":0}]
["4.2.2","Išlaidų pavadinimas",null,null,null,null,0,null,{"$f":"ROUND(G29*$D$6*H29,2)","v":0}]
["4.2.3","Išlaidų pavadinimas",null,null,null,null,0,null,0]
["4.2.4","Išlaidų pavadinimas",null,null,null,null,0,null,0]
["4.2.5","Išlaidų pavadinimas",null,null,null,null,0,null,0]
["4.3","Patentai, licencijos, susijusios su MTEP ir inovacijų infrastruktūra ar jos panaudojimu",null,null,null,null,{"$f":"SUM(G34:G38)","v":0},null,{"$f":"SUM(I34:I38)","v":0}]
["4.3.1","Išlaidų pavadinimas",null,null,null,null,0,null,{"$f":"ROUND(G34*$D$6*H34,2)","v":0}]
["4.3.2","Išlaidų pavadinimas",null,null,null,null,0,null,{"$f":"ROUND(G35*$D$6*H35,2)","v":0}]
["4.3.3","Išlaidų pavadinimas",null,null,null,null,0,null,0]
["4.3.4","Išlaidų pavadinimas",null,null,null,null,0,null,0]
["4.3.5","Išlaidų pavadinimas",null,null,null,null,0,null,0]
["4.4","Kiti įrengimai, įranga, prietaisai, įrankiai ir įrenginiai, priskirtini MTEP ir inovacijų infrastruktūrai",null,null,null,null,{"$f":"SUM(G40:G59)","v":0},null,{"$f":"SUM(I40:I59)","v":0}]
["4.4.1","Išlaidų pavadinimas",null,null,null,null,0,null,{"$f":"ROUND(G40*$D$6*H40,2)","v":0}]
["4.4.2","Išlaidų pavadinimas",null,null,null,null,0,null,{"$f":"ROUND(G41*$D$6*H41,2)","v":0}]
["4.4.3","Išlaidų pavadinimas",null,null,null,null,0,null,0]
["4.4.4","Išlaidų pavadinimas",null,null,null,null,0,null,0]
["4.4.5","Išlaidų pavadinimas",null,null,null,null,0,null,0]
["4.4.6","Išlaidų pavadinimas",null,null,null,null,0,null,0]
["4.4.7","Išlaidų pavadinimas",null,null,null,null,0,null,0]
["4.4.8","Išlaidų pavadinimas",null,null,null,null,0,null,0]
["4.4.9","Išlaidų pavadinimas",null,null,null,null,0,null,0]
["4.4.10","Išlaidų pavadinimas",null,null,null,null,0,null,0]
["4.4.11","Išlaidų pavadinimas",null,null,null,null,0,null,0]
["4.4.12","Išlaidų pavadinimas",null,null,null,null,0,null,0]
["4.4.13","Išlaidų pavadinimas",null,null,null,null,0,null,0]
["4.4.14","Išlaidų pavadinimas",null,null,null,null,0,null,0]
["4.4.15","Išlaidų pavadinimas",null,null,null,null,0,null,0]
["4.4.16","Išlaidų pavadinimas",null,null,null,null,0,null,0]
["4.4.17","Išlaidų pavadinimas",null,null,null,null,0,null,0]
["4.4.18","Išlaidų pavadinimas",null,null,null,null,0,null,0]
["4.4.19","Išlaidų pavadinimas",null,null,null,null,0,null,0]
["4.4.20","Išlaidų pavadinimas",null,null,null,null,0,null,0]
["Iš viso tinkamų finansuoti išlaidų:",null,null,null,null,null,{"$f":"G9+G15","v":0},null,{"$f":"I9+I15","v":0}]